fUST/lending_fUST_20241230
["ID","MTS","AMOUNT","RATE_DAILY","PERIOD"]
[347166649,1735540232228,-570.52,0.00015305,2]
[347166651,1735540232239,-500.0,0.00015305,2]
[347166653,1735540232250,-500.0,0.00015305,2]
[347166656,1735540232262,-500.0,0.00015305,2]
[347166658,1735540232275,-500.0,0.00015305,2]
[347166660,1735540232285,-500.0,0.00015305,2]
[347166662,1735540232296,-490.0,0.00015305,2]
[347166665,1735540232307,-433.34648895,0.00015305,2]
[347166667,1735540232318,-2192.41,0.00015305,2]
[347166669,1735540232329,-509.05420675,0.00015305,2]
[347166671,1735540232340,-582.61739731,0.00015305,2]
[347166674,1735540232352,-500.0,0.00015305,2]
[347166676,1735540232364,-501.034134,0.00015306,2]
[347166678,1735540232375,-502.06250746,0.00015306,2]
[347166680,1735540232385,-501.47168967,0.00015306,2]
[347166682,1735540232396,-500.0,0.00015306,2]
[347166684,1735540232407,-500.0,0.00015306,2]
[347166687,1735540232417,-500.63855633,0.00015306,2]
[347166689,1735540232427,-578.80567872,0.00015306,2]
[347166691,1735540232438,-500.0,0.00015306,2]
[347166693,1735540232448,-500.0,0.00015306,2]
[347166695,1735540232459,-500.0,0.00015306,2]
[347166697,1735540232470,-500.0,0.00015306,2]
[347166699,1735540232482,-500.0,0.00015306,2]
[347166702,1735540232495,-500.0,0.00015306,2]
[347166704,1735540232508,-579.38775606,0.00015306,2]
[347166706,1735540232518,-500.0,0.00015306,2]
[347166708,1735540232529,-228.18678226,0.00015306,2]
[347166710,1735540232543,-500.0,0.00015306,2]
[347166713,1735540232555,-635.82,0.00015306,2]
[347166715,1735540232566,-502.41305177,0.00015306,2]
[347166717,1735540232578,-580.36419411,0.00015306,2]
[347166719,1735540232590,-501.36708381,0.00015306,2]
[347166722,1735540232601,-500.0,0.00015306,2]
[347166724,1735540232611,-501.88312967,0.00015306,2]
[347166726,1735540232620,-269.77640778,0.00015306,2]
[347166728,1735540232629,-500.0,0.00015306,2]
[347166729,1735540232639,-500.0,0.00015306,2]
[347166731,1735540232649,-500.0,0.00015306,2]
[347166732,1735540232660,-502.78166121,0.00015306,2]
[347166733,1735540232671,-501.66086818,0.00015306,2]
[347166734,1735540232682,-500.0,0.00015306,2]
[347166735,1735540232693,-500.0,0.00015306,2]
[347166736,1735540232703,-500.0,0.00015306,2]
[347166737,1735540232714,-500.0,0.00015306,2]
[347166738,1735540232724,-347.70230953,0.00015306,2]
[347166739,1735540232734,-228.11078405,0.00015306,2]
[347166740,1735540232744,-562.17393061,0.00015306,2]
[347166741,1735540232755,-500.0,0.00015306,2]
[347166742,1735540232764,-500.0,0.00015306,2]
[347166743,1735540232776,-500.0,0.00015306,2]
[347166744,1735540232790,-500.0,0.00015306,2]
[347166745,1735540232800,-500.0,0.00015306,2]
[347166746,1735540232809,-325.86014249,0.00015306,2]
[347166747,1735540232819,-502.15215413,0.00015306,2]
[347166748,1735540232829,-267.10553273,0.00015306,2]
[347166749,1735540232839,-500.0,0.00015306,2]
[347166750,1735540232849,-500.0,0.00015306,2]
[347166751,1735540232859,-500.0,0.00015306,2]
[347166752,1735540232870,-500.0,0.00015306,2]
[347166753,1735540232880,-500.0,0.00015306,2]
[347166754,1735540232890,-500.0,0.00015306,2]
[347166755,1735540232901,-500.0,0.00015306,2]
[347166756,1735540232911,-1622.4,0.00015307,2]
[347166757,1735540232922,-500.0,0.00015307,2]
[347166758,1735540232932,-552.63,0.00015307,2]
[347166759,1735540232942,-500.0,0.00015307,2]
[347166760,1735540232952,-500.0,0.00015479,2]
[347166761,1735540232962,-500.0,0.00015479,2]
[347166762,1735540232973,-500.0,0.00015579,2]
[347166763,1735540232985,-2192.41,0.00015579,2]
[347166764,1735540232995,-105.85881697,0.0001558,2]
[347167309,1735540242836,-361.0,0.00013973,2]
[347167310,1735540242845,-1055.81822608,0.00015105,2]
[347167311,1735540242857,-6275.95923828,0.00015105,2]
[347167312,1735540242866,-597.89,0.00015205,2]
[347167314,1735540242875,-500.0,0.00015305,2]
[347167316,1735540242884,-597.89,0.00015305,2]
[347167318,1735540242894,-597.89,0.00015579,2]
[347167320,1735540242903,-394.14118303,0.0001558,2]
[347167322,1735540242913,-448.38202721,0.0001558,2]
[347167324,1735540242922,-409.77,0.0001558,2]
[347167326,1735540242931,-1622.4,0.00015581,2]
[347167328,1735540242940,-166.5,0.00015581,2]
[347167330,1735540242949,-552.63,0.00015581,2]
[347167333,1735540242959,-500.0,0.00015581,2]
[347167335,1735540242968,-500.0,0.00015753,2]
[347167337,1735540242977,-500.0,0.00015753,2]
[347167338,1735540242987,-255.09173718,0.00015853,2]
[347167340,1735540242996,-2192.41,0.00015853,2]
[347167342,1735540243004,-500.0,0.00015854,2]
[347167344,1735540243014,-1622.4,0.00015855,2]
[347167346,1735540243023,-552.63,0.00015855,2]
[347167348,1735540243032,-500.0,0.00015855,2]
[347167350,1735540243041,-500.0,0.00016027,2]
[347167352,1735540243050,-500.0,0.00016027,2]
[347167354,1735540243059,-2192.41,0.00016127,2]
[347167356,1735540243068,-597.89,0.00016128,2]
[347167358,1735540243077,-1622.4,0.00016129,2]
[347167360,1735540243086,-552.63,0.00016129,2]
[347167362,1735540243095,-500.0,0.00016129,2]
[347167364,1735540243104,-500.0,0.00016301,2]
[347167365,1735540243112,-500.0,0.00016301,2]
[347167367,1735540243121,-2192.41,0.00016401,2]
[347167369,1735540243130,-1622.4,0.00016403,2]
[347167371,1735540243139,-552.63,0.00016403,2]
[347167373,1735540243148,-500.0,0.00016403,2]
[347167375,1735540243157,-151.0,0.00016404,2]
[347167377,1735540243166,-151.0,0.00016404,2]
[347167379,1735540243175,-1312.75182514,0.0001643,2]
[347167381,1735540243184,-1936.37038541,0.0001643,2]
[347167383,1735540243193,-500.0,0.00016438,2]
[347167385,1735540243202,-420.0,0.00016451,2]
[347167387,1735540243212,-500.0,0.00016575,2]
[347167389,1735540243221,-500.0,0.00016575,2]
[347167391,1735540243231,-2192.41,0.00016675,2]
[347167393,1735540243241,-597.89,0.00016675,2]
[347167395,1735540243250,-1622.4,0.00016677,2]
[347167397,1735540243260,-552.63,0.00016677,2]
[347167399,1735540243269,-500.0,0.00016677,2]
[347167401,1735540243278,-500.0,0.00016849,2]
[347167403,1735540243287,-277.23,0.00016849,2]
[347167405,1735540243296,-2192.41,0.00016949,2]
[347167407,1735540243305,-1452.73529246,0.00016951,2]
[347168674,1735540576425,190.2832173,0.000133,3]
[347168675,1735540598222,200.0,0.000133,3]
[347168676,1735540619861,210.0,0.000133,4]
[347168736,1735541432129,-300.0,0.00013833,2]
[347168738,1735541432138,-366.888524,0.00013973,2]
[347168740,1735541432147,-300.0,0.00014228,2]
[347168742,1735541432156,-385.923076,0.00014229,2]
[347168744,1735541432165,-10262.8423273,0.00014229,2]
[347168746,1735541432174,-455.0050759,0.00014492,2]
[347168748,1735541432183,-37331.98790138,0.00015103,2]
[347168755,1735541432235,-542.55702,0.00015103,2]
[347168933,1735541438204,-500.0,0.00015102,2]
[347168935,1735541438213,-500.0,0.00015102,2]
[347168936,1735541438222,-152.59357196,0.00015102,2]
[347168938,1735541438232,-178.16651705,0.00015102,2]
[347168940,1735541438242,-500.0,0.00015102,2]
[347168942,1735541438252,-500.0,0.00015102,2]
[347168944,1735541438261,-500.0,0.00015102,2]
[347168946,1735541438270,-643.04150954,0.00015102,2]
[347168948,1735541438279,-500.0,0.00015102,2]
[347168950,1735541438288,-500.0,0.00015102,2]
[347168952,1735541438298,-500.0,0.00015102,2]
[347168954,1735541438307,-500.0,0.00015102,2]
[347168956,1735541438315,-500.0,0.00015102,2]
[347168958,1735541438324,-27566.47202193,0.00015103,2]
[347168959,1735541438334,-159.8366575,0.00015105,2]
[347168961,1735541438343,-500.0,0.00015202,2]
[347168963,1735541438353,-500.0,0.00015203,2]
[347168965,1735541438367,-500.0,0.00015203,2]
[347168967,1735541438377,-500.0,0.00015203,2]
[347168969,1735541438386,-500.0,0.00015203,2]
[347168971,1735541438395,-500.0,0.00015203,2]
[347168973,1735541438405,-605.04,0.00015203,2]
[347168975,1735541438414,-500.0,0.00015203,2]
[347168977,1735541438424,-500.0,0.00015203,2]
[347168979,1735541438433,-500.0,0.00015203,2]
[347168980,1735541438443,-647.1,0.00015203,2]
[347168982,1735541438452,-500.0,0.00015203,2]
[347168984,1735541438462,-500.0,0.00015203,2]
[347168986,1735541438471,-401.64,0.00015203,2]
[347168988,1735541438480,-500.0,0.00015203,2]
[347168990,1735541438493,-500.0,0.00015203,2]
[347168992,1735541438503,-3710.9,0.00015203,2]
[347168994,1735541438512,-889.6,0.00015203,2]
[347168996,1735541438522,-889.6,0.00015203,2]
[347168998,1735541438532,-889.6,0.00015203,2]
[347169000,1735541438541,-500.0,0.00015204,2]
[347169012,1735541438648,-500.0,0.00015204,2]
[347169014,1735541438659,-500.0,0.00015204,2]
[347169016,1735541438668,-500.0,0.00015204,2]
[347169018,1735541438678,-500.0,0.00015204,2]
[347169020,1735541438691,-500.0,0.00015204,2]
[347169022,1735541438700,-500.0,0.00015204,2]
[347169024,1735541438711,-500.0,0.00015204,2]
[347169026,1735541438720,-500.0,0.00015204,2]
[347169028,1735541438729,-500.0,0.00015204,2]
[347169030,1735541438738,-500.0,0.00015204,2]
[347169032,1735541438748,-500.0,0.00015204,2]
[347169034,1735541438758,-500.0,0.00015204,2]
[347169035,1735541438768,-501.30570452,0.00015204,2]
[347169037,1735541438777,-500.0,0.00015204,2]
[347169039,1735541438786,-348.30552899,0.00015204,2]
[347169041,1735541438796,-500.0,0.00015204,2]
[347169042,1735541438806,-500.68352295,0.00015204,2]
[347169044,1735541438815,-503.14469462,0.00015204,2]
[347169046,1735541438825,-503.67915004,0.00015204,2]
[347169047,1735541438835,-500.0,0.00015204,2]
[347169048,1735541438845,-211.27658487,0.00015205,2]
[347169049,1735541438854,-500.3791067,0.00015205,2]
[347169050,1735541438863,-1009.03809577,0.00015205,2]
[347169051,1735541438873,-500.0,0.00015205,2]
[347169052,1735541438882,-500.0,0.00015205,2]
[347169053,1735541438892,-500.0,0.00015205,2]
[347169054,1735541438901,-500.0,0.00015205,2]
[347169055,1735541438911,-500.0,0.00015205,2]
[347169056,1735541438920,-500.0,0.00015205,2]
[347169057,1735541438929,-152.0,0.00015249,2]
[347169058,1735541438940,-500.0,0.00015304,2]
[347169059,1735541438949,-889.6,0.00015304,2]
[347169060,1735541438960,-500.0,0.00015305,2]
[347169061,1735541438970,-771.1,0.00015305,2]
[347169062,1735541438980,-2648.06,0.00015305,2]
[347169063,1735541438990,-500.0,0.00015305,2]
[347169064,1735541439002,-500.0,0.00015305,2]
[347169065,1735541439012,-500.0,0.00015305,2]
[347169066,1735541439022,-500.0,0.00015305,2]
[347169067,1735541439032,-500.0,0.00015305,2]
[347169068,1735541439042,-500.0,0.00015305,2]
[347169069,1735541439052,-500.0,0.00015305,2]
[347169070,1735541439061,-500.0,0.00015305,2]
[347169071,1735541439071,-640.33,0.00015305,2]
[347169072,1735541439080,-188.61829611,0.00015305,2]
[347169073,1735541439089,-500.0,0.00015305,2]
[347169074,1735541439099,-1002.4,0.00015305,2]
[347169075,1735541439108,-513.29143358,0.00015305,2]
[347169076,1735541439117,-500.0,0.00015305,2]
[347169077,1735541439127,-716.79,0.00015305,2]
[347169078,1735541439137,-65441.01694326,0.00015414,2]
[347169079,1735541439147,-500.0,0.00015477,2]
[347169080,1735541439156,-500.0,0.00015477,2]
[347169081,1735541439166,-500.0,0.00015477,2]
[347169082,1735541439175,-500.0,0.00015477,2]
[347169083,1735541439185,-500.0,0.00015477,2]
[347169084,1735541439195,-647.1,0.00015477,2]
[347169085,1735541439204,-500.0,0.00015477,2]
[347169086,1735541439213,-500.0,0.00015477,2]
[347169087,1735541439223,-500.0,0.00015477,2]
[347169088,1735541439232,-3710.9,0.00015477,2]
[347169089,1735541439241,-500.0,0.00015478,2]
[347169090,1735541439253,-500.0,0.00015478,2]
[347169091,1735541439262,-500.0,0.00015478,2]
[347169092,1735541439272,-500.0,0.00015478,2]
[347169093,1735541439281,-500.0,0.00015515,2]
[347169094,1735541439290,-500.0,0.00015515,2]
[347169095,1735541439300,-500.0,0.00015515,2]
[347169096,1735541439310,-500.0,0.00015515,2]
[347169097,1735541439319,-500.0,0.00015515,2]
[347169098,1735541439328,-500.0,0.00015515,2]
[347169099,1735541439338,-500.0,0.00015515,2]
[347169100,1735541439348,-500.0,0.00015515,2]
[347169101,1735541439359,-500.0,0.00015515,2]
[347169102,1735541439370,-889.6,0.00015515,2]
[347169103,1735541439379,-889.6,0.00015515,2]
[347169105,1735541439388,-889.6,0.00015515,2]
[347169106,1735541439397,-889.6,0.00015515,2]
[347169107,1735541439406,-889.6,0.00015515,2]
[347169108,1735541439415,-889.6,0.00015515,2]
[347169109,1735541439424,-889.6,0.00015515,2]
[347169110,1735541439433,-889.6,0.00015515,2]
[347169111,1735541439442,-889.6,0.00015515,2]
[347169112,1735541439451,-538.07087639,0.00015516,30]
[347169113,1735541439461,-502.67890568,0.00015579,2]
[347169114,1735541439470,-771.1,0.00015579,2]
[347169115,1735541439480,-2648.06,0.00015579,2]
[347169116,1735541439489,-522.78,0.00015579,2]
[347169117,1735541439500,-500.0,0.00015579,2]
[347169118,1735541439510,-500.0,0.00015579,2]
[347169119,1735541439519,-500.0,0.00015579,2]
[347169120,1735541439529,-282.75441529,0.00015579,2]
[347169121,1735541439538,-500.0,0.00015579,2]
[347169123,1735541439548,-500.0,0.00015579,2]
[347169125,1735541439557,-500.0,0.00015579,2]
[347169126,1735541439567,-171.39113605,0.00015579,2]
[347169127,1735541439577,-1002.4,0.00015579,2]
[347169128,1735541439587,-716.79,0.00015579,2]
[347169129,1735541439597,-889.6,0.00015579,2]
[347169130,1735541439609,-420.0,0.00015584,2]
[347169131,1735541439619,-192.0,0.00015592,2]
[347169132,1735541439628,-65441.01694326,0.00015725,2]
[347169133,1735541439638,-500.0,0.00015751,2]
[347169134,1735541439647,-500.0,0.00015751,2]
[347169135,1735541439658,-500.0,0.00015751,2]
[347169136,1735541439667,-500.0,0.00015751,2]
[347169138,1735541439677,-500.0,0.00015751,2]
[347169139,1735541439686,-647.1,0.00015751,2]
[347169141,1735541439695,-500.0,0.00015751,2]
[347169143,1735541439704,-500.0,0.00015751,2]
[347169145,1735541439714,-500.0,0.00015751,2]
[347169147,1735541439723,-3710.9,0.00015751,2]
[347169149,1735541439732,-500.0,0.00015752,2]
[347169151,1735541439742,-500.0,0.00015752,2]
[347169153,1735541439751,-500.0,0.00015752,2]
[347169155,1735541439761,-500.0,0.00015752,2]
[347169157,1735541439771,-500.0,0.00015827,2]
[347169159,1735541439780,-409.96,0.00015827,2]
[347169161,1735541439789,-889.6,0.00015827,2]
[347169162,1735541439799,-889.6,0.00015827,2]
[347169164,1735541439808,-889.6,0.00015827,2]
[347169166,1735541439817,-199.257774,0.00015828,2]
[347169168,1735541439827,-199.257774,0.00015828,2]
[347169170,1735541439836,-151.0,0.00015828,2]
[347169172,1735541439845,-151.0,0.00015828,2]
[347169174,1735541439854,-151.0,0.00015828,2]
[347169176,1735541439864,-261.688665,0.00015828,2]
[347169178,1735541439873,-261.688665,0.00015828,2]
[347169180,1735541439883,-151.0,0.00015829,2]
[347169182,1735541439893,-341.682858,0.00015829,2]
[347169184,1735541439902,-341.682858,0.00015829,2]
[347169186,1735541439911,-583.039161,0.00015829,2]
[347169187,1735541439920,-583.039161,0.00015829,2]
[347169189,1735541439929,-194.223347,0.00015829,2]
[347169191,1735541439939,-194.223347,0.00015829,2]
[347169193,1735541439948,-1098.008186,0.00015829,2]
[347169195,1735541439957,-1141.7649,0.00015829,2]
[347169197,1735541439967,-1098.008186,0.00015829,2]
[347169199,1735541439977,-1141.7649,0.00015829,2]
[347169201,1735541439987,-223.76362,0.00015829,2]
[347169203,1735541439996,-223.76362,0.00015829,2]
[347169205,1735541440005,-13551.1470974,0.00015853,2]
[347169207,1735541440014,-208154.69971966,0.00015853,2]
[347169208,1735541440024,-771.1,0.00015853,2]
[347169210,1735541440033,-2648.06,0.00015853,2]
[347169212,1735541440042,-500.0,0.00015853,2]
[347169214,1735541440051,-500.0,0.00015853,2]
[347169216,1735541440060,-500.0,0.00015853,2]
[347169218,1735541440070,-500.0,0.00015853,2]
[347169220,1735541440079,-500.0,0.00015853,2]
[347169222,1735541440089,-1002.4,0.00015853,2]
[347169224,1735541440098,-716.79,0.00015853,2]
[347169225,1735541440107,-500.0,0.00016025,2]
[347169227,1735541440116,-500.0,0.00016025,2]
[347169229,1735541440125,-601.56,0.00016025,2]
[347169230,1735541440134,-500.0,0.00016025,2]
[347169231,1735541440144,-647.1,0.00016025,2]
[347169232,1735541440154,-500.0,0.00016025,2]
[347169233,1735541440164,-500.0,0.00016025,2]
[347169234,1735541440173,-500.0,0.00016025,2]
[347169235,1735541440183,-3710.9,0.00016025,2]
[347169236,1735541440192,-500.0,0.00016026,2]
[347169238,1735541440201,-500.0,0.00016026,2]
[347169240,1735541440210,-500.0,0.00016026,2]
[347169242,1735541440219,-65441.01694326,0.00016035,2]
[347169244,1735541440229,-771.1,0.00016127,2]
[347169246,1735541440239,-2648.06,0.00016127,2]
[347169248,1735541440248,-500.0,0.00016127,2]
[347169250,1735541440257,-268.10384594,0.00016127,2]
[347169252,1735541440267,-1002.4,0.00016127,2]
[347169254,1735541440276,-716.79,0.00016127,2]
[347169256,1735541440285,-889.6,0.00016127,2]
[347169258,1735541440295,-199.257774,0.0001614,2]
[347169260,1735541440304,-199.257774,0.0001614,2]
[347169261,1735541440314,-151.0,0.0001614,2]
[347169263,1735541440323,-151.0,0.0001614,2]
[347169265,1735541440332,-151.0,0.0001614,2]
[347169267,1735541440341,-261.688665,0.0001614,2]
[347169269,1735541440351,-261.688665,0.0001614,2]
[347169271,1735541440362,-889.6,0.0001614,2]
[347169273,1735541440371,-889.6,0.0001614,2]
[347169274,1735541440380,-889.6,0.0001614,2]
[347169276,1735541440389,-889.6,0.0001614,2]
[347169278,1735541440400,-889.6,0.0001614,2]
[347169280,1735541440411,-889.74500499,0.0001614,2]
[347169282,1735541440420,-151.0,0.00016141,2]
[347169284,1735541440429,-341.682858,0.00016141,2]
[347169286,1735541440440,-341.682858,0.00016141,2]
[347169288,1735541440450,-583.039161,0.00016141,2]
[347169290,1735541440459,-583.039161,0.00016141,2]
[347169292,1735541440468,-194.223347,0.00016141,2]
[347169294,1735541440478,-194.223347,0.00016141,2]
[347169296,1735541440486,-1098.008186,0.00016141,2]
[347169298,1735541440496,-1141.7649,0.00016141,2]
[347169299,1735541440507,-1098.008186,0.00016141,2]
[347169300,1735541440516,-1141.7649,0.00016141,2]
[347169301,1735541440527,-223.76362,0.00016141,2]
[347169302,1735541440536,-223.76362,0.00016141,2]
[347169303,1735541440545,-594.06075505,0.00016299,2]
[347169304,1735541440554,-500.0,0.00016299,2]
[347169305,1735541440563,-647.1,0.00016299,2]
[347169306,1735541440572,-500.0,0.00016299,2]
[347169307,1735541440581,-3710.9,0.00016299,2]
[347169308,1735541440590,-500.0,0.000163,2]
[347169309,1735541440599,-500.0,0.000163,2]
[347169310,1735541440609,-500.0,0.000163,2]
[347169311,1735541440619,-65441.01694326,0.00016346,2]
[347169312,1735541440628,-771.1,0.00016401,2]
[347169313,1735541440637,-2648.06,0.00016401,2]
[347169314,1735541440646,-500.0,0.00016401,2]
[347169315,1735541440655,-1002.4,0.00016401,2]
[347169316,1735541440665,-716.79,0.00016401,2]
[347169317,1735541440674,-153.5139799,0.00016438,2]
[347169318,1735541440683,-199.257774,0.00016452,2]
[347169319,1735541440693,-199.257774,0.00016452,2]
[347169320,1735541440702,-151.0,0.00016452,2]
[347169321,1735541440711,-151.0,0.00016452,2]
[347169322,1735541440720,-151.0,0.00016452,2]
[347169323,1735541440730,-261.688665,0.00016452,2]
[347169324,1735541440739,-261.688665,0.00016452,2]
[347169326,1735541440749,-151.0,0.00016453,2]
[347169327,1735541440758,-341.682858,0.00016453,2]
[347169329,1735541440767,-341.682858,0.00016453,2]
[347169331,1735541440776,-583.039161,0.00016453,2]
[347169333,1735541440785,-583.039161,0.00016453,2]
[347169335,1735541440795,-194.223347,0.00016453,2]
[347169337,1735541440805,-194.223347,0.00016453,2]
[347169339,1735541440815,-1098.008186,0.00016453,2]
[347169341,1735541440824,-1141.7649,0.00016453,2]
[347169343,1735541440833,-1098.008186,0.00016453,2]
[347169344,1735541440843,-1141.7649,0.00016453,2]
[347169345,1735541440852,-223.76362,0.00016453,2]
[347169346,1735541440861,-223.76362,0.00016453,2]
[347169347,1735541440871,-10519.646881,0.00016461,2]
[347169348,1735541440880,-151.0,0.00016461,2]
[347169358,1735541440968,-151.0,0.00016507,2]
[347169360,1735541440977,-176.479463,0.00016507,2]
[347169362,1735541440986,-500.0,0.00016573,2]
[347169364,1735541440995,-647.1,0.00016573,2]
[347169366,1735541441006,-500.0,0.00016573,2]
[347169368,1735541441017,-3710.9,0.00016573,2]
[347169371,1735541441027,-500.0,0.00016574,2]
[347169373,1735541441036,-500.0,0.00016574,2]
[347169375,1735541441045,-250.0,0.000166,3]
[347169377,1735541441054,-65441.01694326,0.00016657,2]
[347169379,1735541441063,-771.1,0.00016675,2]
[347169381,1735541441072,-2648.06,0.00016675,2]
[347169382,1735541441081,-500.0,0.00016675,2]
[347169385,1735541441090,-1002.4,0.00016675,2]
[347169387,1735541441100,-716.79,0.00016675,2]
[347169389,1735541441108,-199.257774,0.00016764,2]
[347169391,1735541441118,-199.257774,0.00016764,2]
[347169393,1735541441127,-151.0,0.00016764,2]
[347169395,1735541441136,-151.0,0.00016764,2]
[347169396,1735541441145,-151.0,0.00016764,2]
[347169399,1735541441154,-261.688665,0.00016764,2]
[347169401,1735541441164,-261.688665,0.00016764,2]
[347169402,1735541441173,-204.036878,0.00016764,2]
[347169404,1735541441182,-778.129999,0.00016764,2]
[347169407,1735541441191,-778.129999,0.00016764,2]
[347169409,1735541441200,-151.0,0.00016764,2]
[347169411,1735541441209,-151.0,0.00016764,2]
[347169413,1735541441218,-151.0,0.00016764,2]
[347169415,1735541441227,-456.856731,0.00016764,2]
[347169417,1735541441236,-456.856731,0.00016764,2]
[347169419,1735541441245,-919.714308,0.00016764,2]
[347169421,1735541441255,-3304.600011,0.00016764,2]
[347169423,1735541441263,-919.714308,0.00016764,2]
[347169425,1735541441272,-151.0,0.00016764,2]
[347169426,1735541441281,-3304.600011,0.00016764,2]
[347169429,1735541441290,-243.727111,0.00016764,2]
[347169431,1735541441300,-151.0,0.00016764,2]
[347169433,1735541441308,-151.0,0.00016765,2]
[347169434,1735541441317,-341.682858,0.00016765,2]
[347169436,1735541441326,-341.682858,0.00016765,2]
[347169438,1735541441335,-583.039161,0.00016765,2]
[347169440,1735541441343,-583.039161,0.00016765,2]
[347169442,1735541441353,-194.223347,0.00016765,2]
[347169445,1735541441362,-194.223347,0.00016765,2]
[347169447,1735541441371,-1098.008186,0.00016765,2]
[347169449,1735541441380,-1141.7649,0.00016765,2]
[347169451,1735541441388,-1098.008186,0.00016765,2]
[347169452,1735541441397,-1141.7649,0.00016765,2]
[347169454,1735541441406,-223.76362,0.00016765,2]
[347169457,1735541441415,-223.76362,0.00016765,2]
[347169459,1735541441424,-210.0,0.000168,4]
[347169461,1735541441434,-210.0,0.000168,4]
[347169463,1735541441443,-210.0,0.000168,3]
[347169465,1735541441452,-210.0,0.000168,4]
[347169467,1735541441461,-228.29,0.000168,7]
[347169469,1735541441470,-501.92214031,0.000168,2]
[347169471,1735541441478,-500.0,0.00016847,2]
[347169474,1735541441500,-647.1,0.00016847,2]
[347169476,1735541441510,-500.0,0.00016847,2]
[347169478,1735541441520,-3710.9,0.00016847,2]
[347169480,1735541441530,-500.0,0.00016848,2]
[347169482,1735541441539,-500.0,0.00016848,2]
[347169484,1735541441549,-771.1,0.00016949,2]
[347169486,1735541441559,-2648.06,0.00016949,2]
[347169488,1735541441568,-500.0,0.00016949,2]
[347169490,1735541441578,-1002.4,0.00016949,2]
[347169492,1735541441587,-716.79,0.00016949,2]
[347169494,1735541441597,-3514.08857374,0.00016968,2]
[347169511,1735541441730,-61926.92836952,0.00016968,2]
[347169513,1735541441739,-587.0,0.00017069,2]
[347169515,1735541441748,-199.257774,0.00017076,2]
[347169517,1735541441757,-199.257774,0.00017076,2]
[347169519,1735541441766,-160.507006,0.00017076,2]
[347169521,1735541441775,-151.0,0.00017076,2]
[347169523,1735541441784,-151.0,0.00017076,2]
[347169525,1735541441793,-261.688665,0.00017076,2]
[347169527,1735541441802,-261.688665,0.00017076,2]
[347169529,1735541441811,-151.0,0.00017077,2]
[347169531,1735541441820,-341.682858,0.00017077,2]
[347169533,1735541441829,-341.682858,0.00017077,2]
[347169535,1735541441838,-583.039161,0.00017077,2]
[347169537,1735541441847,-583.039161,0.00017077,2]
[347169539,1735541441857,-194.223347,0.00017077,2]
[347169541,1735541441866,-194.223347,0.00017077,2]
[347169543,1735541441875,-833.45021718,0.00017077,2]
[347169609,1735541446118,-500.0,0.00015202,2]
[347169610,1735541446127,-500.0,0.00015204,2]
[347169611,1735541446137,-137.77877776,0.00017077,2]
[347169612,1735541446148,-126.77919106,0.00017077,2]
[347169613,1735541446157,-1141.7649,0.00017077,2]
[347169614,1735541446167,-1098.008186,0.00017077,2]
[347169615,1735541446176,-1141.7649,0.00017077,2]
[347169616,1735541446185,-223.76362,0.00017077,2]
[347169617,1735541446194,-223.76362,0.00017077,2]